Cogmind - Beta 16 @@@ ROGUE MODE // 2026.01.08 @ 22:38:43 Player: Strick9 Result: Self-destructed Performance ------------- Evolutions (1) 500 Regions Visited (2) 400 Robots Destroyed (25) 125 Value Destroyed (445) 445 Prototype IDs (0) 0 Alien Tech Used (0) 0 Bonus (0) 0 TOTAL SCORE: 1470 Bonus ------- None Cogmind --------- Core Integrity 197/400 Matter 290/300 Energy 73/250 System Corruption 0% Temperature Warm (165) Movement Treading (170) Location -9/Materials Parts ------- > --- POWER (1) -------- Ion Engine > --- PROPULSION (3) --- Armored Treads Armored Treads Armored Treads > --- UTILITY (3) ------ Medium Storage Unit Seismic Detector ECM Suite > --- WEAPON (2) ------- Beam Rifle Particle Gun > --- INVENTORY (10) --- Light Ion Engine Armored Treads Wheel Cryofiber Web Small Storage Unit Particle Charger Beam Rifle Assault Rifle Mining Laser Peak State ------------ > --- POWER ------------ Improved Ion Engine > --- PROPULSION ------- Armored Treads Armored Treads Armored Treads > --- UTILITY ---------- Medium Storage Unit Seismic Detector Particle Charger > --- WEAPON ----------- Beam Rifle Particle Gun > --- INVENTORY -------- Ion Engine Armored Treads Wheel Cryofiber Web Small Storage Unit ECM Suite Beam Rifle Assault Rifle Mining Laser [Rating: 21] Favorites ----------- Power Ion Engine Engine Ion Engine Propulsion Aluminum Leg Treads Armored Treads Leg Aluminum Leg Utility Seismic Detector Device Seismic Detector Storage Small Storage Unit Weapon Assault Rifle Energy Gun Particle Gun Ballistic Gun Assault Rifle Build | -11 -10 -9 ------- Run | Yrd Mat Mat Slots Evolved 2 | . . 2 Power . | . . . Propulsion 1 | . . 1 Utility 1 | . . 1 Weapon . | . . . Parts Attached 24 | 7 6 11 Power 5 | 1 2 2 Engine 5 | 1 2 2 Core . | . . . Reactor . | . . . Propulsion 7 | 2 . 5 Treads 4 | . . 4 Leg 3 | 2 . 1 Wheel . | . . . Hover . | . . . Flight . | . . . Utility 8 | 2 4 2 Device 6 | 1 3 2 Storage 2 | 1 1 . Processor . | . . . Hackware . | . . . Protection . | . . . Artifact . | . . . Weapon 4 | 2 . 2 Energy Gun 2 | . . 2 Energy Cannon . | . . . Ballistic Gun 2 | 2 . . Ballistic Cannon . | . . . Launcher . | . . . Special Weapon . | . . . Impact Weapon . | . . . Slashing Weapon . | . . . Piercing Weapon . | . . . Special Melee Weapon . | . . . Unidentified Prototypes . | . . . Parts Lost 6 | . 2 4 Power 4 | . 1 3 Propulsion . | . . . Utility 2 | . 1 1 Weapon . | . . . Highest Loss Streak 3 | . 1 3 To Critical Strikes . | . . . Average Backups 7 | 4 7 8 Power . | . . 1 Propulsion 2 | 2 3 2 Utility 1 | . 1 1 Weapon 2 | 1 2 3 Tool/Special . | . . . Unused Backups 8 | . 2 6 Power 1 | . . 1 Propulsion 4 | . 1 3 Utility . | . . . Weapon 3 | . 1 2 Tool/Special . | . . . Average Slot Usage (%) 96 | . 100 93 Engine 12 | . 14 10 Treads 6 | . . 13 Leg 21 | . 28 13 Device 17 | . 14 22 Storage 12 | . 14 11 Energy Gun 3 | . . 7 Ballistic Gun 21 | . 28 14 Peak Build Rating 21 | 8 9 21 Average Rating 10 | 6 8 13 On Entrance 5 | . 8 8 Avg Prop Armor Cover (%) . | . . . Naked Turns . | . . . Heaviest Build 26 | 13 20 26 Greatest Support 60 | 20 20 60 Greatest Overweight (x) 7 | 2 . 7 Average Overweight (x) . | . . . Largest Inventory Capacity 10 | 8 10 10 Average Capacity 8 | 7 8 10 Most Carried 10 | 8 9 10 Average Carried 7 | 4 7 8 Final Capacity 10 | 8 10 10 Final Carried 9 | 8 9 9 Class Distribution -------------------- 100% | Mutant Dominant Class ---------------- Mutant | -10/Materials Mutant | -9/Materials Resources | -11 -10 -9 ----------- Run | Yrd Mat Mat Matter Collected 781 | 242 288 251 Remotely . | . . . Salvage Created 926 | 10 451 465 Parts 54 | 3 27 24 Haulers Intercepted 1 | . . 1 Recyclers Shooed 2 | 1 1 . Parts Field Recycled . | . . . Retrieved Matter . | . . . Parts Self-Destructed . | . . . Prevented . | . . . Parts Restored . | . . . Kills | -11 -10 -9 ------- Run | Yrd Mat Mat Combat Hostiles Destroyed 16 | . 8 8 Guns 16 | . 8 8 Classes Destroyed 7 | 1 4 2 Tunneler 1 | 1 . . Hauler 1 | . . 1 Recycler 5 | . 3 2 Watcher 2 | . 1 1 Swarmer 9 | . 5 4 Grunt 4 | . 3 1 Sentry 3 | . . 3 Best Kill Streak 5 | 1 3 5 Combat Bots Only 5 | . 3 5 Max Kills in Single Turn 1 | 1 1 1 Gunslinging . | . . . Exploded . | . . . Melee . | . . . Uniques/NPCs Destroyed . | . . . Combat | -11 -10 -9 -------- Run | Yrd Mat Mat Hostile Shots Fired 109 | . 41 68 Missed 19 | . 10 9 Hits 90 | . 31 59 Projectile 90 | . 31 59 Critical Strikes 7 | . . 7 Damage Taken 1180 | . 279 901 Core 233 | . 30 203 Absorbed by Shields . | . . . Core Remaining (%) 94 | 100 88 . Volleys Fired 68 | 3 32 33 Largest 2 | 2 2 2 Hottest 121 | 40 40 121 Shots Fired 136 | 6 64 66 Gun 136 | 6 64 66 Cannon . | . . . Launcher . | . . . Special . | . . . Kinetic 102 | 6 64 32 Thermal 34 | . . 34 Explosive . | . . . Electromagnetic . | . . . Robot Hit Streak 16 | 3 15 16 Robot Miss Streak 4 | 2 4 3 Penetration Max . | . . . Secondary Targets 2 | . 1 1 Max Gunslinging Chain 1 | . 1 1 Shots Hit Robots 93 | 4 40 49 Core Hits 37 | 2 17 18 Critical Kills . | . . . Critical Parts Destroyed 1 | . 1 . Critical Strikes 3 | . 1 2 Burn 2 | . . 2 Destroy 1 | . 1 . Melee Attacks . | . . . Impact . | . . . Slashing . | . . . Piercing . | . . . Sneak Attacks . | . . . Combat Hostiles . | . . . Follow-up Attacks . | . . . Damage Inflicted 1260 | 52 507 701 Guns 1260 | 52 507 701 Cannons . | . . . Explosions . | . . . Melee . | . . . Ramming . | . . . Kinetic 856 | 52 507 297 Thermal 404 | . . 404 Explosive . | . . . Electromagnetic . | . . . Impact . | . . . Slashing . | . . . Piercing . | . . . Highest Corruption . | . . . Average Corruption . | . . . Corruption Purged . | . . . Corruption Blocked . | . . . Overload Shots . | . . . Overflow Damage . | . . . Projectiles . | . . . Explosions . | . . . Melee . | . . . Knockbacks . | . . . Impact . | . . . Kinetic . | . . . Secondary . | . . . Self-Inflicted Damage . | . . . Shots . | . . . Rammed . | . . . Targets Rammed . | . . . Kicked . | . . . Crushed . | . . . Highest Temperature 498 | . 2 498 Average Temperature 181 | . 2 185 Received Heat Transfer 378 | . 54 324 Effects 6 | . . 6 Energy Bleed 2 | . . 2 Interference 3 | . . 3 Short Circuit 1 | . . 1 Siege Activations . | . . . Martial Activations . | . . . Shielding Activations . | . . . Robots Disrupted . | . . . Combat Hostiles . | . . . Robots Corrupted . | . . . Combat Hostiles . | . . . Parts Fried . | . . . Impact Corruptions . | . . . Robots Melted . | . . . Combat Hostiles . | . . . Parts Melted 2 | . . 2 Heat Transferred 1147 | . . 1147 Parts Sabotaged . | . . . Parts Stolen . | . . . Parts Stripped . | . . . Power Chain Reactions . | . . . Alert | -11 -10 -9 ------- Run | Yrd Mat Mat Maximum Alert Level . | . . . Low Security (%) 100 | 100 100 100 Level 1 . | . . . Level 2 . | . . . Level 3 . | . . . Level 4 . | . . . Level 5 . | . . . High Security . | . . . Max Security . | . . . Peak Influence 123 | 5 56 123 Initial 1 | . . 1 Average 16 | . 19 16 Influence Increases 543 | 5 279 259 Destroy 0b10 Robot/C 320 | . 160 160 Destroy 0b10 Robot/NC 45 | 5 20 20 Destroy Leader 76 | . 32 44 Successful Hack 24 | . 19 5 Destroy Structure 3 | . 3 . Partial Spotted 15 | . 15 . Lose Combat Pursuer 60 | . 30 30 Influence Decreases 420 | 5 274 141 Entered New Map 4 | . . 4 Time Decay 386 | 5 254 127 Lost Part 30 | . 20 10 Squads Dispatched 1 | . 1 . Investigation 1 | . 1 . Extermination . | . . . Reinforcement . | . . . Assault . | . . . Garrison . | . . . Intercept . | . . . Searches Triggered . | . . . Construction Impeded . | . . . Haulers Reinforced . | . . . Active Scanning Responses . | . . . Cargo Convoy Interrupts . | . . . Stealth | -11 -10 -9 --------- Run | Yrd Mat Mat Distress Signals 2 | . . 2 Communications Jammed . | . . . Distress Signals . | . . . Times Spotted 33 | . 16 17 Peak Tracking Total 5 | . 4 5 Tactical Retreats 5 | . 2 3 ECM-based Alert Blocks 1 | . . 1 Traps | -11 -10 -9 ------- Run | Yrd Mat Mat Traps Triggered 1 | . 1 . Indirectly . | . . . Trap Hack Attempts . | . . . Triggered . | . . . Disarmed . | . . . Reprogrammed . | . . . Reused . | . . . Traps Extracted . | . . . Installed . | . . . Triggered . | . . . Machines | -11 -10 -9 ---------- Run | Yrd Mat Mat Machines Disabled . | . . . Max in Single Turn . | . . . Machines Repaired . | . . . Machines Dismantled . | . . . Machines Sabotaged . | . . . Overloaded Fab Kills . | . . . Hacking | -11 -10 -9 --------- Run | Yrd Mat Mat Machines Accessed 6 | . 5 1 Terminals 6 | . 5 1 Fabricators . | . . . Repair Stations . | . . . Recycling Units . | . . . Scanalyzers . | . . . Garrison Access . | . . . Total Hacks 15 | . 13 2 Successful 4 | . 3 1 Failed 11 | . 10 1 Catastrophic 3 | . 3 . Database Lockouts . | . . . Manual 13 | . 11 2 Terminals 15 | . 13 2 Fabricators . | . . . Repair Stations . | . . . Recycling Units . | . . . Scanalyzers . | . . . Garrison Access . | . . . Terminal Hacks 2 | . 2 . Robot Analysis 1 | . 1 . Alert Level 1 | . 1 . Fabricator Hacks . | . . . Repair Station Hacks . | . . . Recycling Unit Hacks . | . . . Scanalyzer . | . . . Garrison Access Hacks . | . . . Unauthorized Hacks 2 | . 1 1 Terminals 2 | . 1 1 Botnet 2 | . 1 1 Fabricators . | . . . Repair Stations . | . . . Recycling Units . | . . . Scanalyzers . | . . . Garrison Access . | . . . Data Cores Recovered . | . . . Used . | . . . Hacking Detections 6 | . 5 1 Full Trace Events . | . . . Feedback Events . | . . . Feedback Blocked . | . . . Robot Schematics Acquired . | . . . Robots Built . | . . . Authchips . | . . . Time . | . . . Total Robot Build Rating . | . . . Part Schematics Acquired . | . . . Parts Built . | . . . Authchips . | . . . Time . | . . . Total Part Build Rating . | . . . Part Studies Acquired . | . . . Parts Repaired . | . . . Time . | . . . Parts Recycled . | . . . Recycled Matter . | . . . Retrieved Matter . | . . . Retrieved Components . | . . . Parts Scanalyzed . | . . . Part Schematics Acquired . | . . . Parts Damaged . | . . . Bothacking | -11 -10 -9 ------------ Run | Yrd Mat Mat Used RIF Installer . | . . . Robots Hacked . | . . . Non-combat . | . . . Combat . | . . . Robot Hacks Applied . | . . . Relay Couplers Released . | . . . Fabnet Peak Effective % . | . . . Robots Rewired . | . . . Allies Hacked . | . . . Hacks Repelled . | . . . Allies | -11 -10 -9 -------- Run | Yrd Mat Mat Total Allies . | . . . Largest Group . | . . . Highest-Rated Group . | . . . Highest-Rated Ally . | . . . Total Orders . | . . . Ally Attacks . | . . . Total Damage . | . . . Kills . | . . . Allies Corrupted . | . . . Allies Melted . | . . . Intel | -11 -10 -9 ------- Run | Yrd Mat Mat Active Infowar (turns) 1325 | 41 650 634 Terrain 320 | . 182 138 Seismic 1108 | 41 433 634 ECM 189 | . 35 154 Robot Analysis Total 1 | . 1 . Derelict Logs Recovered . | . . . Drone Launches . | . . . Drone Recoveries . | . . . Exploration | -11 -10 -9 ------------- Run | Yrd Mat Mat Turns Passed 1435 | 147 654 634 Spaces Moved 727 | 101 379 247 Core 4 | 3 . 1 Treads 84 | . . 84 Legs 639 | 98 379 162 Wheels . | . . . Hover . | . . . Flight . | . . . Fastest Speed 50 | 50 120 120 Average Speed 139 | 118 120 176 Slowest Speed 400 | 150 120 400 Overloaded Moves . | . . . Propulsion Burnouts . | . . . Robots Hopped . | . . . Potential Cave-ins . | . . . Cave-ins Triggered . | . . . Exploration Rate (%) 24 | 5 46 22 Regions Visited 2 Branch Regions . Pre-discovered Areas . | . . . Known Exits Taken . | . . . Unknown Exits Taken 2 | 1 1 . Scrap Searched . | . . . Spaces Dug . | . . . Terrain Destroyed . | . . . Melee . | . . . Projectile . | . . . AOE . | . . . Terrain Rammed . | . . . Walls Destroyed . | . . . Machines Disabled . | . . . Actions | -11 -10 -9 --------- Run | Yrd Mat Mat Total 1011 | 119 514 378 Wait 151 | . 88 63 Move 725 | 100 378 247 Hop . | . . . Pick Up 20 | 9 4 7 Fast Attach 13 | 6 1 6 Attach 9 | 1 2 6 Detach 5 | . 1 4 Swap 9 | . 4 5 Drop 11 | . 4 7 Fire 68 | 3 32 33 Melee . | . . . Ram . | . . . Kick . | . . . Crush . | . . . Escape Stasis . | . . . Rewire . | . . . Trap . | . . . Miscellaneous . | . . . Route ------- -11/Scrapyard -10/Materials -9/Materials (discovered 1 exit: [*Min]) History --------- Turn | Location | Event 8 | -11/Scrapyard | Discovered new exit (range 15) 148 | -11/Scrapyard | Entered Materials 313 | -10/Materials | Build established: Mutant 724 | -10/Materials | Discovered new exit (range 12) 802 | -10/Materials | Entered another Materials area 802 | -9/Materials | Evolved 2 slots: Propulsion x1, Utility x1 977 | -9/Materials | Lost 3 parts (2p1u) 1256 | -9/Materials | Discovered new exit (range 8) 1435 | -9/Materials | Core integrity fell below 50% 1436 | -9/Materials | Self-destructed Last Messages --------------- 01372_ Cryofiber Web temporarily disabled. 01372_ Particle Gun temporarily disabled. 01386_ S-10 Pest destroyed. 01387_ Acquired 8 matter. 01387_ K-01 Serf collects debris. 01389_ S-10 Pest destroyed. 01390_ K-01 Serf collects debris. 01393_ Acquired 2 matter. 01393_ K-01 Serf collects debris. 01393_ Acquired 8 matter. 01397_ W-16 Scout sends out distress signal. 01400_ Acquired 10 matter. 01404_ Imp. Ion Engine destroyed. 01408_ R-06 Scavenger collects Lgt. Assault Rifle. 01433_ Critical hit (Burn: +37). 01433_ Y-45 Defender destroyed. 01434_ Fusion Modulator explodes. 01434_ Atomic Centrifuge disabled. 01434_ B-36 Bruiser destroyed. Map ----- +----------------------------------------------------+ | ?????????????????????????????????????????????????? | | ?????????????????????????????????????????????????? | | ?????????????????????????????????????????????????? | | ?????????????????????????????????????????????????? | | ?????????????????????????????????????????????????? | | ?????????????????????????????????????????????????? | | ?????????????????????????????????????????????????? | | ?????????????????????????????????????????????????? | | ?????????????????????????????????????????????????? | | ?????????????????????????????????????????????????? | | ?????????????????????????????????????????????????? | | ?????????????????????????????????????????????????? | | ?????????????????????????????????????????????????? | | ?????????????????????????????????????????????????? | | ????????????????????????##???????????????????????? | | ????????????????????????g ???????????????????????? | | ????????????????????? ? ???????????????????????? | | ???????????????????? ""? #??????????????????????? | | ?????????????????????"Y? #??????????????????????? | | ?????????????????????"" #??????????????????????? | | ?????????????????????? ##?????????????????????? | | ????????????????????###;#;;####??????????????????? | | ????????????????????# ;;;;;;;;#??????????????????? | | ???????????######/###;; ;##?????????????????? | | ???????????""T""" ; ; #?#???????????????? | | ????????#?? "" @ ;#? #???????????????? | | ????????# ? " ;## ###?????????????? | | ????????# " ; #??????"??????" | | ????????# =g ;! #?????????????? | | ?????????? ! %=*;% #?????????????? | | ?????????###k######;;; ; #?????????????? | | ?????????# #####; ; # #?????????????? | | ?????????# = ; ; ### ###?????????#???? | | ?????????# % ;;; #?? #???????######### | | ?????????# % % ; #??? ???????+ | | ?????????# ##+###;#;;;####????#??????# | | ?????????## ## %= #????????????#??# | | ??????????# ##*=* #???????????????# | | ??????????# ## #???????????????# | | ??????????# ## #???????????????# ] | | ?????????## ############?????????#?????# | | ?????????# """#??????????????????????## | | ?????????# "#???????????????????#???# | | ?????????# !"#??????????????????#????######### | | ?????????# < ""#????????????????????####### | | ?????????# |"#???????????#####????? # """ | | ?????????# "#???????????# =#?#?? # """ | | ####?????# """# "?????????#===#?#? # """ | | ???## ####? ????????#=!!#?# # | | ### #######+######## ![#?# """ # | +----------------------------------------------------+ Best States ------------- Heat Dissipation 28 Energy Generation 12 Energy Capacity 265 Matter Stores 300 Matter Capacity 300 Sight Range 16 Terrain Scan Range 16 Terrain Scan Density 10 ECM Strength 1 Base Temperature (-) 100 Evasion (%) 55 Recoil Reduction 3 Particle Charging 15 Item Schematics ----------------- None Robot Schematics ------------------ None Fabricated ------------ Nothing Repaired ---------- Nothing Studied --------- None Alien Tech Used ----------------- None Achievements -------------- None Challenges ------------ None Game ------ Seed SalvageSuperdenseRifle Manual? 0 Play Time 00:25:02 Cumulative 43.0 hours Start 2026.01.04 @ 22:55:43 End 2026.01.08 @ 22:38:43 Sessions 3 Manual Loads 0 Difficulty Rogue Special Mode None Game No. 36 Rogue 36 Adventurer 0 Explorer 0 Win Type - Total 0 Types 0/0/0/0/0/0/0/0/0/0 Lore% 12 Gallery% 22 Achievement% 14 Wizard Run 0 Options --------- Layout 1 ASCII 0 Keyboard 1 Movement Numpad Keybinds 0 Fullscreen 1 Font 32/SmallcapsGlow Map View 50x35 Zoom Use 0% Tactical HUD 1 Map Filters NONE Filters NONE Steam 1 RUN: 358794b8-b748-4f38-8e18-5513d9297912